Cogmind - Beta 15 @@@ ROGUE MODE // 2025.09.11 @ 15:07:18 Player: potator Result: Destroyed by as-03714 with Assembled F-torch Performance ------------- Evolutions (0) 0 Regions Visited (4) 800 Robots Destroyed (17) 85 Value Destroyed (390) 390 Prototype IDs (23) 460 Alien Tech Used (0) 0 Bonus (360) 360 TOTAL SCORE: 2095 Bonus ------- Follower Combat Kills 60 Aligned with FarCom 300 Cogmind --------- Core Integrity 0/250 Matter 270/300 Energy 52/100 System Corruption 8% Temperature Cool (20) Movement Treading (160) Location -9/Mines Parts ------- > --- POWER (1) -------- Improved Ion Engine > --- PROPULSION (2) --- Light Treads Light Treads > --- UTILITY (2) ------ Improved Heat Sink Small Storage Unit > --- WEAPON (2) ------- Firepult > --- INVENTORY (8) ---- Light Nuclear Core Experimental Sensor Array Medium Laser Beam Cannon Rocket Launcher Mining Laser Peak State ------------ > --- POWER ------------ Improved Ion Engine > --- PROPULSION ------- Light Treads Light Treads > --- UTILITY ---------- Improved Heat Sink Small Storage Unit > --- WEAPON ----------- Firepult > --- INVENTORY -------- Light Nuclear Core Improved Heat Sink Experimental Sensor Array Medium Laser Beam Cannon Rocket Launcher Mining Laser [Rating: 30] Favorites ----------- Power Improved Ion Engine Engine Improved Ion Engine Propulsion Light Treads Treads Light Treads Leg Aluminum Leg Wheel Wheel Utility Small Storage Unit Device Improved Heat Sink Storage Small Storage Unit Processor Signal Interpreter Weapon Medium Laser Energy Gun Medium Laser Energy Cannon Beam Cannon Special Weapon Mining Laser Build | -11 -10 -10 -10 -9 ------- Run | Yrd Mat Min Exi Min Slots Evolved . | . . . . . Power . | . . . . . Propulsion . | . . . . . Utility . | . . . . . Weapon . | . . . . . Parts Attached 23 | 6 5 10 1 1 Power 4 | 1 1 2 . . Engine 4 | 1 1 2 . . Core . | . . . . . Reactor . | . . . . . Propulsion 7 | 2 . 5 . . Treads 4 | 2 . 2 . . Leg 1 | . . 1 . . Wheel 2 | . . 2 . . Hover . | . . . . . Flight . | . . . . . Utility 6 | 1 2 2 . 1 Device 4 | . 2 1 . 1 Storage 1 | 1 . . . . Processor 1 | . . 1 . . Hackware . | . . . . . Protection . | . . . . . Artifact . | . . . . . Weapon 6 | 2 2 1 1 . Energy Gun 3 | 2 1 . . . Energy Cannon 2 | . . 1 1 . Ballistic Gun . | . . . . . Ballistic Cannon . | . . . . . Launcher . | . . . . . Special Weapon 1 | . 1 . . . Impact Weapon . | . . . . . Slashing Weapon . | . . . . . Piercing Weapon . | . . . . . Special Melee Weapon . | . . . . . Unidentified Prototypes . | . . . . . Parts Lost 4 | . 1 2 . 1 Power . | . . . . . Propulsion 2 | . . 2 . . Utility 2 | . 1 . . 1 Weapon . | . . . . . Highest Loss Streak 1 | . 1 1 . 1 To Critical Strikes . | . . . . . Average Backups 4 | 3 2 3 7 7 Power . | . . . 1 1 Propulsion . | . . . . . Utility 1 | . . 1 2 1 Weapon 2 | 1 . 1 4 4 Tool/Special . | . . . . . Unused Backups 5 | . . 2 . 3 Power 1 | . . . . 1 Propulsion . | . . . . . Utility 3 | . . 2 . 1 Weapon 1 | . . . . 1 Tool/Special . | . . . . . Average Slot Usage (%) 93 | . 92 97 91 82 Engine 14 | . 14 14 14 14 Treads 24 | . 28 18 28 28 Wheel 2 | . . 7 . . Device 6 | . 6 12 . 4 Storage 12 | . 14 10 14 14 Processor 6 | . . 4 14 6 Energy Gun 16 | . 27 19 6 2 Energy Cannon 8 | . . 8 14 11 Peak Build Rating 30 | 6 9 13 27 30 Average Rating 12 | 1 6 9 18 24 On Entrance 10 | . 6 9 9 27 Naked Turns . | . . . . . Heaviest Build 35 | 13 15 18 34 35 Greatest Support 40 | 40 40 40 40 40 Greatest Overweight (x) 4 | . . 4 . . Average Overweight (x) . | . . . . . Largest Inventory Capacity 8 | 8 8 8 8 8 Average Capacity 7 | 5 8 7 8 8 Most Carried 8 | 5 4 6 8 8 Average Carried 4 | 3 2 3 7 7 Final Capacity 8 | 8 8 8 8 8 Final Carried 8 | . 3 6 8 6 Class Distribution -------------------- 76% | Mutant 22% | Scavenger-Mutant Dominant Class ---------------- Mutant | -10/Materials Scavenger-Mutant | -10/Mines Mutant | -10/Exiles Scavenger-Mutant | -9/Mines Resources | -11 -10 -10 -10 -9 ----------- Run | Yrd Mat Min Exi Min Matter Collected 658 | 197 127 178 . 156 Remotely . | . . . . . Salvage Created 485 | . 252 129 . 104 Parts 26 | . 12 9 . 5 Haulers Intercepted . | . . . . . Recyclers Shooed . | . . . . . Parts Field Recycled . | . . . . . Retrieved Matter . | . . . . . Parts Self-Destructed . | . . . . . Prevented . | . . . . . Kills | -11 -10 -10 -10 -9 ------- Run | Yrd Mat Min Exi Min Combat Hostiles Destroyed 20 | . 8 5 . 7 Guns 12 | . 6 5 . 1 Cannons 1 | . 1 . . . AOE 6 | . . . . 6 Classes Destroyed 5 | . 3 . . 2 Builder 1 | . . . . 1 Watcher 3 | . 3 . . . Swarmer 6 | . 3 3 . . Grunt 7 | . 5 2 . . Assembled 7 | . . . . 7 Best Kill Streak 4 | . 2 3 . 4 Combat Bots Only 3 | . 2 3 . 3 Max Kills in Single Turn 3 | . 1 1 . 3 Gunslinging . | . . . . . Exploded 3 | . . . . 3 Melee . | . . . . . Uniques/NPCs Destroyed . | . . . . . Combat | -11 -10 -10 -10 -9 -------- Run | Yrd Mat Min Exi Min Hostile Shots Fired 115 | . 45 53 . 17 Missed 36 | . 12 19 . 5 Hits 79 | . 33 34 . 12 Melee 4 | . . . . 4 Projectile 75 | . 33 34 . 8 Critical Strikes 1 | . 1 . . . Part Disruptions 1 | . . . . 1 Damage Taken 984 | . 409 336 . 239 Core 256 | . 104 84 . 68 Absorbed by Shields . | . . . . . Core Remaining (%) 100 | 100 . . . . Volleys Fired 66 | . 40 17 . 9 Largest 2 | . 2 2 . 2 Hottest 250 | . 150 100 . 250 Shots Fired 120 | . 73 34 . 13 Gun 111 | . 69 34 . 8 Cannon 5 | . . . . 5 Launcher . | . . . . . Special 4 | . 4 . . . Kinetic . | . . . . . Thermal 120 | . 73 34 . 13 Explosive . | . . . . . Electromagnetic . | . . . . . Robot Hit Streak 18 | . 18 3 . 3 Robot Miss Streak 5 | . 4 5 . 3 Penetration Max . | . . . . . Secondary Targets . | . . . . . Shots Hit Robots 71 | . 46 16 . 9 Core Hits 41 | . 17 8 . 16 Critical Kills . | . . . . . Critical Parts Destroyed . | . . . . . Critical Strikes 11 | . 10 1 . . Burn 11 | . 10 1 . . Melee Attacks . | . . . . . Impact . | . . . . . Slashing . | . . . . . Piercing . | . . . . . Sneak Attacks . | . . . . . Combat Hostiles . | . . . . . Follow-up Attacks . | . . . . . Damage Inflicted 1192 | . 602 212 . 378 Guns 816 | . 554 212 . 50 Cannons 82 | . . . . 82 Explosions 246 | . . . . 246 Melee . | . . . . . Ramming . | . . . . . Kinetic . | . . . . . Thermal 1192 | . 602 212 . 378 Explosive . | . . . . . Electromagnetic . | . . . . . Impact . | . . . . . Slashing . | . . . . . Piercing . | . . . . . Highest Corruption 8 | . 3 3 3 8 Average Corruption 3 | . 2 3 3 5 Corruption Purged . | . . . . . Corruption Blocked . | . . . . . Effects 55 | . 3 28 20 4 Message Errors 16 | . 2 8 6 . Matter Fused 16 | . 1 7 8 . Heat Flow Errors 8 | . . 5 2 1 Energy Discharges 4 | . . 2 1 1 Parts Rejected 1 | . . . . 1 Data Loss (minor) 6 | . . 4 2 . Data Loss (major) 4 | . . 2 1 1 Overload Shots . | . . . . . Overflow Damage . | . . . . . Projectiles . | . . . . . Explosions . | . . . . . Melee . | . . . . . Knockbacks . | . . . . . Impact . | . . . . . Kinetic . | . . . . . Secondary . | . . . . . Self-Inflicted Damage 26 | . . . . 26 Shots 2 | . . . . 2 Rammed . | . . . . . Targets Rammed . | . . . . . Kicked . | . . . . . Crushed . | . . . . . Highest Temperature 504 | . 288 267 260 504 Average Temperature 123 | . 112 83 114 181 Received Heat Transfer 409 | . 222 87 . 100 Effects 5 | . 2 . . 3 Energy Bleed 1 | . 1 . . . Interference 1 | . 1 . . . Matter Decay 1 | . . . . 1 Short Circuit 1 | . . . . 1 Damage (minor) 1 | . . . . 1 Siege Activations . | . . . . . Martial Activations . | . . . . . Shielding Activations . | . . . . . Robots Disrupted . | . . . . . Combat Hostiles . | . . . . . Robots Corrupted . | . . . . . Combat Hostiles . | . . . . . Parts Fried . | . . . . . Impact Corruptions . | . . . . . Robots Melted 1 | . 1 . . . Combat Hostiles 1 | . 1 . . . Parts Melted 12 | . 7 3 . 2 Heat Transferred 5240 | . 2469 703 . 2068 Parts Sabotaged . | . . . . . Parts Stolen . | . . . . . Parts Stripped . | . . . . . Power Chain Reactions . | . . . . . Alert | -11 -10 -10 -10 -9 ------- Run | Yrd Mat Min Exi Min Maximum Alert Level . | . . . . . Low Security (%) 100 | 100 100 100 . 100 Level 1 . | . . . . . Level 2 . | . . . . . Level 3 . | . . . . . Level 4 . | . . . . . Level 5 . | . . . . . High Security . | . . . . . Max Security . | . . . . . Peak Influence 65 | . 65 59 . 15 Initial 9 | . . 9 . . Average 11 | . 15 9 . 1 Influence Increases 461 | . 240 191 . 30 Destroy 0b10 Robot/C 300 | . 160 140 . . Destroy 0b10 Robot/NC 20 | . 15 . . 5 Destroy Leader 66 | . 36 30 . . Allied During Kill 6 | . . 6 . . Successful Hack 13 | . 13 . . . Destroy Structure 26 | . 1 . . 25 Partial Spotted 15 | . . 15 . . Lose Combat Pursuer 15 | . 15 . . . Influence Decreases 460 | . 215 216 . 29 Entered New Map 16 | . . 16 . . Time Decay 405 | . 205 180 . 20 Lost Part 39 | . 10 20 . 9 Squads Dispatched 1 | . 1 . . . Investigation . | . . . . . Extermination . | . . . . . Reinforcement 1 | . 1 . . . Assault . | . . . . . Garrison . | . . . . . Intercept . | . . . . . Searches Triggered . | . . . . . Construction Impeded . | . . . . . Haulers Reinforced . | . . . . . Active Scanning Responses . | . . . . . Cargo Convoy Interrupts . | . . . . . Stealth | -11 -10 -10 -10 -9 --------- Run | Yrd Mat Min Exi Min Distress Signals 1 | . . . . 1 Communications Jammed . | . . . . . Distress Signals . | . . . . . Times Spotted 35 | . 16 9 . 10 Peak Tracking Total 4 | . 3 3 . 4 Tactical Retreats 1 | . 1 . . . Traps | -11 -10 -10 -10 -9 ------- Run | Yrd Mat Min Exi Min Traps Triggered 2 | . 2 . . . Indirectly . | . . . . . Trap Hack Attempts . | . . . . . Triggered . | . . . . . Disarmed . | . . . . . Reprogrammed . | . . . . . Reused . | . . . . . Traps Extracted . | . . . . . Installed . | . . . . . Triggered . | . . . . . Machines | -11 -10 -10 -10 -9 ---------- Run | Yrd Mat Min Exi Min Machines Disabled . | . . . . . Max in Single Turn . | . . . . . Machines Repaired . | . . . . . Machines Dismantled . | . . . . . Machines Sabotaged . | . . . . . Overloaded Fab Kills . | . . . . . Hacking | -11 -10 -10 -10 -9 --------- Run | Yrd Mat Min Exi Min Machines Accessed 11 | . 6 . 5 . Terminals 6 | . 6 . . . Fabricators . | . . . . . Repair Stations . | . . . . . Recycling Units . | . . . . . Scanalyzers . | . . . . . Garrison Access . | . . . . . Total Hacks 63 | . 13 . 50 . Successful 53 | . 3 . 50 . Failed 10 | . 10 . . . Catastrophic . | . . . . . Database Lockouts . | . . . . . Manual 5 | . 3 . 2 . Terminals 13 | . 13 . . . Fabricators . | . . . . . Repair Stations . | . . . . . Recycling Units . | . . . . . Scanalyzers . | . . . . . Garrison Access . | . . . . . Terminal Hacks 53 | . 3 . 50 . Record 49 | . . . 49 . Level Access Points 1 | . 1 . . . Locate Traps 1 | . 1 . . . Zone Layout 1 | . 1 . . . Proto ID Catalog 1 | . . . 1 . Fabricator Hacks . | . . . . . Repair Station Hacks . | . . . . . Recycling Unit Hacks . | . . . . . Scanalyzer . | . . . . . Garrison Access Hacks . | . . . . . Unauthorized Hacks . | . . . . . Terminals . | . . . . . Fabricators . | . . . . . Repair Stations . | . . . . . Recycling Units . | . . . . . Scanalyzers . | . . . . . Garrison Access . | . . . . . Data Cores Recovered . | . . . . . Used . | . . . . . Hacking Detections 5 | . 5 . . . Full Trace Events . | . . . . . Feedback Events . | . . . . . Feedback Blocked . | . . . . . Robot Schematics Acquired . | . . . . . Robots Built . | . . . . . Authchips . | . . . . . Time . | . . . . . Total Robot Build Rating . | . . . . . Part Schematics Acquired . | . . . . . Parts Built . | . . . . . Authchips . | . . . . . Time . | . . . . . Total Part Build Rating . | . . . . . Parts Repaired . | . . . . . Time . | . . . . . Parts Recycled . | . . . . . Recycled Matter . | . . . . . Retrieved Matter . | . . . . . Retrieved Components . | . . . . . Parts Scanalyzed . | . . . . . Part Schematics Acquired . | . . . . . Parts Damaged . | . . . . . Bothacking | -11 -10 -10 -10 -9 ------------ Run | Yrd Mat Min Exi Min Used RIF Installer . | . . . . . Robots Hacked . | . . . . . Non-combat . | . . . . . Combat . | . . . . . Robot Hacks Applied . | . . . . . Relay Couplers Released . | . . . . . Fabnet Peak Effective % . | . . . . . Robots Rewired . | . . . . . Allies Hacked . | . . . . . Hacks Repelled . | . . . . . Allies | -11 -10 -10 -10 -9 -------- Run | Yrd Mat Min Exi Min Total Allies 3 | . . 3 . . Largest Group 3 | . . 3 2 2 Highest-Rated Group 40 | . . 40 32 32 Highest-Rated Ally 16 | . . 16 16 16 Total Orders . | . . . . . Ally Attacks 19 | . . 15 . 4 Total Damage 164 | . . 148 . 16 Kills 2 | . . 2 . . Allies Corrupted . | . . . . . Allies Melted . | . . . . . Intel | -11 -10 -10 -10 -9 ------- Run | Yrd Mat Min Exi Min Active Infowar (turns) 414 | . 414 . . . Seismic 414 | . 414 . . . Robot Analysis Total . | . . . . . Derelict Logs Recovered 1 | . . 1 . . Drone Launches . | . . . . . Drone Recoveries . | . . . . . Exploration | -11 -10 -10 -10 -9 ------------- Run | Yrd Mat Min Exi Min Turns Passed 3907 | 29 1084 1415 1189 190 Spaces Moved 2199 | 34 544 805 741 75 Core 42 | 33 . 9 . . Treads 1800 | 1 544 439 741 75 Legs 8 | . . 8 . . Wheels 349 | . . 349 . . Hover . | . . . . . Flight . | . . . . . Fastest Speed 50 | 50 160 80 160 160 Average Speed 146 | 53 160 127 160 160 Slowest Speed 250 | 160 160 250 160 160 Overloaded Moves . | . . . . . Propulsion Burnouts . | . . . . . Robots Hopped . | . . . . . Potential Cave-ins . | . . . . . Cave-ins Triggered . | . . . . . Exploration Rate (%) 60 | 3 91 96 92 19 Regions Visited 4 Branch Regions 3 Pre-discovered Areas 1 | . . . 1 . Known Exits Taken 2 | . . 1 1 . Unknown Exits Taken 2 | 1 1 . . . Scrap Searched 2 | . . 2 . . Spaces Dug 1 | . 1 . . . Terrain Destroyed 33 | . 1 . . 32 Melee . | . . . . . Projectile 3 | . 1 . . 2 AOE 30 | . . . . 30 Terrain Rammed . | . . . . . Walls Destroyed . | . . . . . Machines Disabled . | . . . . . Actions | -11 -10 -10 -10 -9 --------- Run | Yrd Mat Min Exi Min Total 2764 | 45 676 1162 746 135 Wait 420 | . 78 306 . 36 Move 2195 | 33 543 804 740 75 Hop . | . . . . . Pick Up 34 | 6 7 13 3 5 Fast Attach . | . . . . . Attach 19 | 6 2 5 1 5 Detach 2 | . . 2 . . Swap 12 | . 4 8 . . Drop 16 | . 2 7 2 5 Fire 66 | . 40 17 . 9 Melee . | . . . . . Ram . | . . . . . Kick . | . . . . . Crush . | . . . . . Escape Stasis . | . . . . . Rewire . | . . . . . Trap . | . . . . . Miscellaneous . | . . . . . Route ------- -11/Scrapyard -10/Materials (discovered 5 exits: *Mat x3 / [*Min x2]) -10/Mines (discovered 3 exits: *Mat / *Exi / *Sub) -10/Exiles (discovered 2 exits: *Min x2) -9/Mines History --------- Turn | Location | Event 8 | -11/Scrapyard | Discovered new exit (range 16) 30 | -11/Scrapyard | Entered Materials 91 | -10/Materials | Identified exit to Materials 206 | -10/Materials | Discovered new exit (range 11) 251 | -10/Materials | Discovered new exit (range 13) 318 | -10/Materials | Build established: Mutant 1114 | -10/Materials | Entered Mines 1140 | -10/Mines | Core integrity fell below 50% 1367 | -10/Mines | Found a Scrap Suit stashed away for nefarious purposes 1369 | -10/Mines | Found Scrap Suit 1614 | -10/Mines | Joined a pair of Derelicts in attacking an 0b10 outpost 1931 | -10/Mines | Build established: Scavenger-Mutant 2007 | -10/Mines | Discovered new exit (range 6) 2061 | -10/Mines | Identified exit to Subcaves 2133 | -10/Mines | Assisted by bots powering up and referring to "LRC-V3" 2355 | -10/Mines | Found a damaged Exp. Sensor Array with a note attached 2358 | -10/Mines | Found Prototype Device 2379 | -10/Mines | Received a Rocket Launcher from a helpful Derelict 2385 | -10/Mines | Discovered exit to Materials (range 10) 2521 | -10/Mines | Deemed a non-threat by the Exiles lab entrance 2523 | -10/Mines | Discovered new exit (range 5) 2527 | -10/Mines | Identified exit to Exiles 2529 | -10/Mines | Entered Exiles 2529 | -10/Exiles | Accompanied by 2 allies 2566 | -10/Exiles | Met 8R-AWN 2574 | -10/Exiles | Discovered new exit (range 14) 2592 | -10/Exiles | Identified exit to Mines 2648 | -10/Exiles | Met EX-HEX 2697 | -10/Exiles | Build established: Mutant 2725 | -10/Exiles | Met EX-BIN 2761 | -10/Exiles | Aligned with FarCom system 2763 | -10/Exiles | Given EX-Vault access code 2859 | -10/Exiles | Opened EX-Vault 2955 | -10/Exiles | Warned to stay clear of 0b10 Research branches 3022 | -10/Exiles | Found Firepult 3114 | -10/Exiles | Met EX-DEC 3144 | -10/Exiles | Learned location of Zion (-6) 3194 | -10/Exiles | Discovered exit to Mines (range 10) 3303 | -10/Exiles | Visited The Gauntlet 3718 | -10/Exiles | Left Exiles lab with Firepult 3718 | -10/Exiles | Entered Mines 3718 | -9/Mines | Accompanied by 2 allies 3719 | -9/Mines | Assembled infested the area 3867 | -9/Mines | A weapon hastily lodged in a ceiling crevice suddenly fell to the ground 3891 | -9/Mines | Core integrity fell below 20% 3908 | -9/Mines | Destroyed by as-03714 with Assembled F-torch Last Messages --------------- Wheel melted. Terrain Scanner melted. U-05 Engineer destroyed. as-88142 destroyed. Firepult emits an uncontrolled burst of heat. as-48908 destroyed. Imp. Ion Engine broken. Overheating: Short circuit. Overheating: Firepult damaged (-217). U-05 Engineer lays Concrete. as-31018 sneak attacks. U-05 Engineer system corrupted by crushing effect. U-05 Engineer knocked back. Overheating: Matter decay (-66). as-11425 destroyed. System corrupted: Energy discharge (-23). Acquired 29 matter. Acquired 6 matter. Acquired 11 matter. Map ----- +----------------------------------------------------+ | | | | | | | ?????????????????????????????????????????????????? | | ?????????????????????????????????????????????????? | | ?????????????????????????????????????????????????? | | ?????????????????????????????????????????????????? | | ?????????????????????????????????????????????????? | | ?????????????????????????????????????????????????? | | ?????????????????????????????????????????????????? | | ?????????????????????????????????????????????????? | | ?????????????????????????????????????????????????? | | ??????????????????????????????????################ | | ??????????????????????????????????# # | | ??????????????????????????????????# """ """ """ # | | ??????????????????????????????????# """ """ """ # | | ????????????????????????????####### """ """ """ # | | ????????????????????????????#[ **[ # | | ????????????????????????????# ##### """ """ # | | ???????????????????????????##!#???# """ """ # | | ???????????????????????????#"[#???# """ """ # | | ?????????????????????#####?#" ##??# # | | ?????????????????????# ### #??################ | | ?????????????????????# ## % # ####???????????? | | ?????????????????##### % #???????????? | | ??????????????#### # @ % #??????????? | | ??????????????# a * ; ##< #??????????? | | ??????????????# a=%%## #?## ##??????????? | | ??????????#####| ]!*a !%!## ##???####???????????? | | ?????????# =!% % |#####???????????????????? | | ?????????# =*! ] #??????????????????????? | | ???? =%* % !%= =#????????????????????? | | ???? |%%% **#### [%[#???????????????????? | | ???? *%# %=#???# =%[%= ????????????????? | | ????? ??# ????## #####*=%" ???????????????? | | ??????? " #" ??????####????#### ???????????????? | | ??????! ##### ??????????????????????????????????? | | ?????? ?????#???????????????????????????????????? | | ?????????????????????????????????s???????????????? | | ?????????????????????????????????????????????????? | | ?????????????????????????????????????????????????? | | ?????????????????????????????????????????????????? | | ?????????????????????????????????????????????????? | | ?????????????????????????????????????????????????? | | ?????????????????????????????????????????????????? | | ?????????????????????????????????????????????????? | | ?????????????????????????????????????????????????? | | ?????????????????????????????????????????????????? | | ?????????????????????????????????????????????????? | | ?????????????????????????????????????????????????? | +----------------------------------------------------+ Best States ------------- Heat Dissipation 39 Energy Generation 12 Energy Capacity 265 Matter Stores 300 Matter Capacity 300 Sight Range 16 Terrain Scan Density 10 Evasion (%) 50 Recoil Reduction 2 Item Schematics ----------------- None Robot Schematics ------------------ None Fabricated ------------ Nothing Repaired ---------- Nothing Alien Tech Used ----------------- None Achievements -------------- None Challenges ------------ None Game ------ Seed ThiefMinesnifferManipulator Manual? 0 Play Time 00:30:50 Cumulative 24.3 hours Start 2025.09.11 @ 14:36:00 End 2025.09.11 @ 15:07:18 Sessions 1 Manual Loads 0 Difficulty Rogue Special Mode None Game No. 52 Rogue 52 Adventurer 0 Explorer 0 Win Type - Total 0 Types 0/0/0/0/0/0/0/0/0/0 Lore% 21 Gallery% 19 Achievement% 17 Wizard Run 0 Options --------- Layout 1 ASCII 0 Keyboard 0 Movement Mouse Keybinds 0 Fullscreen 2 Font 24/Smallcaps Map View 50x35 Zoom Use 0% Tactical HUD 0 Map Filters NONE Filters NONE Steam X RUN: 63ddef51-abc1-432c-b65a-59c9f2ceed81